Cogmind - Beta 16.1 @@@ ROGUE MODE // 2026.02.14 @ 21:47:50 Player: Skergy Result: Destroyed by 7R-8Y2(R) with Subdweller Laser Performance ------------- Evolutions (0) 0 Regions Visited (2) 400 Robots Destroyed (16) 80 Value Destroyed (492) 492 Prototype IDs (0) 0 Alien Tech Used (0) 0 Bonus (0) 0 TOTAL SCORE: 972 Bonus ------- None Cogmind --------- Core Integrity 0/250 Matter 281/300 Energy 200/200 System Corruption 0% Temperature Cool (6) Movement Rolling (130) Ox2 Location -10/Subcaves Parts ------- > --- POWER (1) -------- Subdweller Power Source > --- PROPULSION (2) --- Light Treads Compact Wheel > --- UTILITY (2) ------ Large Storage Unit Core Shielding > --- WEAPON (2) ------- Subdweller Laser Light Cannon > --- INVENTORY (15) --- Light Ion Engine Subdweller Power Source Wheel Compact Wheel Subdweller Monowheel Subdweller Monowheel Medium Matter Pod (63) Medium Matter Pod (100) Targeting Computer ECM Suite Assault Rifle Datajack Peak State ------------ > --- POWER ------------ Subdweller Power Source > --- PROPULSION ------- Light Treads Compact Wheel > --- UTILITY ---------- Large Storage Unit Core Shielding > --- WEAPON ----------- Subdweller Laser Light Cannon > --- INVENTORY -------- Light Ion Engine Subdweller Power Source Wheel Compact Wheel Subdweller Monowheel Medium Matter Pod Medium Matter Pod Targeting Computer ECM Suite Assault Rifle Datajack [Rating: 10] Favorites ----------- Power Light Ion Engine Engine Light Ion Engine Propulsion Light Treads Treads Light Treads Wheel Compact Wheel Utility Large Storage Unit Device Seismic Detector Storage Large Storage Unit Protection Core Shielding Weapon Small Laser Energy Gun Small Laser Ballistic Gun Light Assault Rifle Ballistic Cannon Light Cannon Special Weapon Mining Laser Special Melee Weapon Datajack Build | -11 -10 -10 ------- Run | Yrd Mat Sub Slots Evolved . | . . . Power . | . . . Propulsion . | . . . Utility . | . . . Weapon . | . . . Parts Attached 19 | 6 11 2 Power 3 | 1 1 1 Engine 3 | 1 1 1 Core . | . . . Reactor . | . . . Propulsion 3 | 1 2 . Treads 2 | 1 1 . Leg . | . . . Wheel 1 | . 1 . Hover . | . . . Flight . | . . . Utility 5 | 2 3 . Device 2 | 1 1 . Storage 2 | 1 1 . Processor . | . . . Hackware . | . . . Protection 1 | . 1 . Artifact . | . . . Weapon 8 | 2 5 1 Energy Gun 3 | 2 . 1 Energy Cannon . | . . . Ballistic Gun 2 | . 2 . Ballistic Cannon 1 | . 1 . Launcher . | . . . Special Weapon 1 | . 1 . Impact Weapon . | . . . Slashing Weapon . | . . . Piercing Weapon . | . . . Special Melee Weapon 1 | . 1 . Unidentified Prototypes . | . . . Parts Lost 8 | . 6 2 Power 2 | . 1 1 Propulsion 1 | . 1 . Utility 1 | . . 1 Weapon 4 | . 4 . Highest Loss Streak 3 | . 3 1 To Critical Strikes . | . . . Average Backups 8 | 4 8 10 Power . | . . 1 Propulsion 2 | 2 2 2 Utility 2 | . 2 4 Weapon 1 | 1 1 . Tool/Special . | . . . Unused Backups 8 | . 1 7 Power 2 | . . 2 Propulsion 2 | . . 2 Utility 4 | . 1 3 Weapon . | . . . Tool/Special . | . . . Average Slot Usage (%) 85 | . 81 100 Engine 9 | . 8 14 Treads 15 | . 16 14 Wheel 4 | . 1 14 Device 6 | . 7 1 Storage 14 | . 14 14 Protection 7 | . 6 12 Energy Gun 14 | . 17 4 Ballistic Gun 5 | . 3 9 Ballistic Cannon 3 | . . 14 Special Melee Weapon 2 | . 3 . Peak Build Rating 10 | 6 7 10 Average Rating 6 | 4 5 8 On Entrance 4 | . 6 7 Avg Prop Armor Cover (%) 13 | . 15 12 Naked Turns . | . . . Heaviest Build 33 | 12 29 33 Greatest Support 40 | 20 40 16 Greatest Overweight (x) 2 | . 1 2 Average Overweight (x) . | . . 1 Largest Inventory Capacity 15 | 8 15 15 Average Capacity 14 | 7 14 15 Most Carried 12 | 6 10 12 Average Carried 8 | 4 8 10 Final Capacity 15 | 8 15 15 Final Carried 12 | 6 9 12 Class Distribution -------------------- 100% | Mutant Dominant Class ---------------- Mutant | -10/Materials Mutant | -10/Subcaves Resources | -11 -10 -10 ----------- Run | Yrd Mat Sub Matter Collected 614 | 260 194 160 Remotely . | . . . Salvage Created 626 | 145 366 115 Parts 31 | 9 13 9 Haulers Intercepted . | . . . Recyclers Shooed 1 | . 1 . Parts Field Recycled . | . . . Retrieved Matter . | . . . Parts Self-Destructed . | . . . Prevented . | . . . Parts Restored . | . . . Kills | -11 -10 -10 ------- Run | Yrd Mat Sub Combat Hostiles Destroyed 12 | . 9 3 Guns 9 | . 7 2 Cannons 3 | . 2 1 Classes Destroyed 4 | 2 1 1 Tunneler 3 | 3 . . Recycler 1 | 1 . . Grunt 9 | . 9 . Subdweller 3 | . . 3 Best Kill Streak 4 | 4 3 2 Combat Bots Only 3 | . 3 2 Max Kills in Single Turn 1 | 1 1 1 Gunslinging . | . . . Exploded . | . . . Melee . | . . . Uniques/NPCs Destroyed . | . . . Combat | -11 -10 -10 -------- Run | Yrd Mat Sub Hostile Shots Fired 98 | . 76 22 Missed 24 | . 17 7 Hits 74 | . 59 15 Projectile 74 | . 59 15 AOE 2 | . . 2 Critical Strikes 1 | . 1 . Damage Taken 1132 | . 739 393 Core 250 | . 127 123 Absorbed by Shields . | . . . Redirected to Shielding 30 | . 12 18 Core Remaining (%) 100 | 100 . . Volleys Fired 70 | 10 41 19 Largest 2 | 2 2 2 Hottest 140 | 80 140 90 Shots Fired 125 | 20 67 38 Gun 99 | 20 60 19 Cannon 20 | . 1 19 Launcher . | . . . Special 6 | . 6 . Kinetic 44 | . 17 27 Thermal 64 | 10 43 11 Explosive . | . . . Electromagnetic 17 | 10 7 . Robot Hit Streak 13 | 10 13 8 Robot Miss Streak 3 | 2 2 3 Penetration Max . | . . . Secondary Targets 2 | . 2 . Max Gunslinging Chain 1 | . 1 . Shots Hit Robots 80 | 13 51 16 Core Hits 31 | 4 22 5 Critical Kills 1 | . . 1 Critical Parts Destroyed 1 | . . 1 Critical Strikes 4 | 1 . 3 Destroy 2 | . . 2 Blast 1 | . . 1 Corrupt 1 | 1 . . Melee Attacks 1 | . 1 . Impact . | . . . Slashing . | . . . Piercing . | . . . Sneak Attacks . | . . . Combat Hostiles . | . . . Follow-up Attacks . | . . . Damage Inflicted 1040 | 165 605 270 Guns 815 | 165 491 159 Cannons 129 | . 18 111 Explosions . | . . . Melee . | . . . Ramming . | . . . Kinetic 313 | . 126 187 Thermal 534 | 55 396 83 Explosive . | . . . Electromagnetic 193 | 110 83 . Impact . | . . . Slashing . | . . . Piercing . | . . . Highest Corruption . | . . . Average Corruption . | . . . Corruption Purged . | . . . Corruption Blocked . | . . . Overload Shots . | . . . Overflow Damage . | . . . Projectiles . | . . . Explosions . | . . . Melee . | . . . Knockbacks 1 | . . 1 Impact . | . . . Kinetic 1 | . . 1 Secondary . | . . . Self-Inflicted Damage . | . . . Shots . | . . . Rammed . | . . . Targets Rammed . | . . . Kicked . | . . . Crushed . | . . . Highest Temperature 252 | 107 252 . Average Temperature 70 | 43 79 . Received Heat Transfer 498 | . 429 69 Effects 1 | . 1 . Energy Bleed 1 | . 1 . Siege Activations . | . . . Martial Activations . | . . . Shielding Activations . | . . . Robots Disrupted . | . . . Combat Hostiles . | . . . Robots Corrupted . | . . . Combat Hostiles . | . . . Parts Fried . | . . . Impact Corruptions . | . . . Robots Melted . | . . . Combat Hostiles . | . . . Parts Melted . | . . . Heat Transferred 1100 | 125 875 100 Parts Sabotaged . | . . . Parts Stolen . | . . . Parts Stripped . | . . . Power Chain Reactions . | . . . Alert | -11 -10 -10 ------- Run | Yrd Mat Sub Maximum Alert Level . | . . . Low Security (%) 100 | 100 100 . Level 1 . | . . . Level 2 . | . . . Level 3 . | . . . Level 4 . | . . . Level 5 . | . . . High Security . | . . . Max Security . | . . . Peak Influence 66 | 5 66 . Initial . | . . . Average 14 | 1 16 . Influence Increases 297 | 20 277 . Destroy 0b10 Robot/C 180 | . 180 . Destroy 0b10 Robot/NC 20 | 20 . . Destroy Leader 40 | . 40 . Successful Hack 26 | . 26 . Destroy Structure 1 | . 1 . Lose Combat Pursuer 30 | . 30 . Influence Decreases 297 | 20 277 . Time Decay 257 | 20 237 . Lost Part 40 | . 40 . Squads Dispatched 1 | . 1 . Investigation . | . . . Extermination . | . . . Reinforcement 1 | . 1 . Assault . | . . . Garrison . | . . . Intercept . | . . . Searches Triggered . | . . . Construction Impeded . | . . . Haulers Reinforced . | . . . Active Scanning Responses . | . . . Cargo Convoy Interrupts . | . . . Stealth | -11 -10 -10 --------- Run | Yrd Mat Sub Distress Signals . | . . . Communications Jammed . | . . . Distress Signals . | . . . Times Spotted 23 | . 16 7 Peak Tracking Total 5 | . 5 2 Tactical Retreats 1 | . 1 . Traps | -11 -10 -10 ------- Run | Yrd Mat Sub Traps Triggered . | . . . Indirectly . | . . . Trap Hack Attempts 5 | . 5 . Triggered . | . . . Disarmed 1 | . 1 . Reprogrammed 1 | . 1 . Reused . | . . . Traps Extracted . | . . . Installed . | . . . Triggered . | . . . Machines | -11 -10 -10 ---------- Run | Yrd Mat Sub Machines Disabled . | . . . Max in Single Turn . | . . . Machines Repaired . | . . . Machines Dismantled . | . . . Machines Sabotaged . | . . . Overloaded Fab Kills . | . . . Hacking | -11 -10 -10 --------- Run | Yrd Mat Sub Machines Accessed 5 | . 5 . Terminals 5 | . 5 . Fabricators . | . . . Repair Stations . | . . . Recycling Units . | . . . Scanalyzers . | . . . Garrison Access . | . . . Total Hacks 17 | . 17 . Successful 6 | . 6 . Failed 11 | . 11 . Catastrophic 2 | . 2 . Database Lockouts . | . . . Manual 18 | . 18 . Terminals 17 | . 17 . Fabricators . | . . . Repair Stations . | . . . Recycling Units . | . . . Scanalyzers . | . . . Garrison Access . | . . . Terminal Hacks . | . . . Fabricator Hacks . | . . . Repair Station Hacks . | . . . Recycling Unit Hacks . | . . . Scanalyzer . | . . . Garrison Access Hacks . | . . . Unauthorized Hacks 6 | . 6 . Terminals 6 | . 6 . Assimilate 1 | . 1 . Botnet 3 | . 3 . Disrupt 1 | . 1 . Operators 1 | . 1 . Fabricators . | . . . Repair Stations . | . . . Recycling Units . | . . . Scanalyzers . | . . . Garrison Access . | . . . Data Cores Recovered . | . . . Used . | . . . Hacking Detections 5 | . 5 . Full Trace Events . | . . . Feedback Events . | . . . Feedback Blocked . | . . . Robot Schematics Acquired . | . . . Robots Built . | . . . Authchips . | . . . Time . | . . . Total Robot Build Rating . | . . . Part Schematics Acquired . | . . . Parts Built . | . . . Authchips . | . . . Time . | . . . Total Part Build Rating . | . . . Part Studies Acquired . | . . . Parts Repaired . | . . . Time . | . . . Parts Recycled . | . . . Recycled Matter . | . . . Retrieved Matter . | . . . Retrieved Components . | . . . Parts Scanalyzed . | . . . Part Schematics Acquired . | . . . Parts Damaged . | . . . Bothacking | -11 -10 -10 ------------ Run | Yrd Mat Sub Used RIF Installer . | . . . Robots Hacked 1 | . 1 . Non-combat . | . . . Combat 1 | . 1 . Robot Hacks Applied 1 | . 1 . parse_system 1 | . 1 . Relay Couplers Released . | . . . Fabnet Peak Effective % . | . . . Robots Rewired . | . . . Allies Hacked . | . . . Hacks Repelled . | . . . Allies | -11 -10 -10 -------- Run | Yrd Mat Sub Total Allies . | . . . Largest Group . | . . . Highest-Rated Group . | . . . Highest-Rated Ally . | . . . Total Orders . | . . . Ally Attacks . | . . . Total Damage . | . . . Kills . | . . . Allies Corrupted . | . . . Allies Melted . | . . . Intel | -11 -10 -10 ------- Run | Yrd Mat Sub Active Infowar (turns) 701 | 60 601 40 Seismic 680 | 60 580 40 ECM 21 | . 21 . Robot Analysis Total . | . . . Derelict Logs Recovered . | . . . Drone Launches . | . . . Drone Recoveries . | . . . Exploration | -11 -10 -10 ------------- Run | Yrd Mat Sub Turns Passed 1649 | 156 1189 304 Spaces Moved 687 | 73 413 201 Core 5 | 5 . . Treads 378 | 68 310 . Legs . | . . . Wheels 304 | . 103 201 Hover . | . . . Flight . | . . . Fastest Speed 50 | 50 115 115 Average Speed 162 | 152 186 118 Slowest Speed 240 | 160 240 130 Overloaded Moves . | . . . Propulsion Burnouts . | . . . Robots Hopped . | . . . Potential Cave-ins . | . . . Cave-ins Triggered . | . . . Exploration Rate (%) 34 | 5 82 15 Regions Visited 2 Branch Regions 1 Pre-discovered Areas . | . . . Known Exits Taken . | . . . Unknown Exits Taken 2 | 1 1 . Scrap Searched 1 | . . 1 Spaces Dug 3 | . . 3 Terrain Destroyed 4 | . 1 3 Melee . | . . . Projectile 4 | . 1 3 AOE . | . . . Terrain Rammed . | . . . Walls Destroyed . | . . . Machines Disabled . | . . . Actions | -11 -10 -10 --------- Run | Yrd Mat Sub Total 1077 | 96 752 229 Wait 267 | . 267 . Move 685 | 72 412 201 Hop . | . . . Pick Up 22 | 8 9 5 Fast Attach 6 | 4 2 . Attach 10 | 2 6 2 Detach 1 | . 1 . Swap 8 | . 6 2 Drop 2 | . 2 . Fire 70 | 10 41 19 Melee 1 | . 1 . Ram . | . . . Kick . | . . . Crush . | . . . Escape Stasis . | . . . Rewire . | . . . Trap 5 | . 5 . Miscellaneous . | . . . Route ------- -11/Scrapyard -10/Materials (discovered 5 exits: [*Mat x3] / [*Min] / [*Sub]) -10/Subcaves (discovered 1 exit: [*Mat]) History --------- Turn | Location | Event 44 | -11/Scrapyard | Discovered new exit (range 14) 157 | -11/Scrapyard | Entered Materials 309 | -10/Materials | Build established: Mutant 523 | -10/Materials | Discovered new exit (range 7) 938 | -10/Materials | Discovered new exit (range 15) 1086 | -10/Materials | Discovered new exit (range 15) 1206 | -10/Materials | Core integrity fell below 50% 1238 | -10/Materials | Lost 3 parts (1n2w) 1253 | -10/Materials | Discovered new exit (range 11) 1334 | -10/Materials | Discovered new exit (range 11) 1346 | -10/Materials | Entered Subcaves 1387 | -10/Subcaves | A swath of the cavern ceiling suddenly collapsed 1388 | -10/Subcaves | Ambushed by Subdwellers from Twisted Machinery 1515 | -10/Subcaves | Discovered new exit (range 14) 1639 | -10/Subcaves | Disturbed a concealed Subdweller 1642 | -10/Subcaves | Disturbed a concealed Subdweller 1646 | -10/Subcaves | Core integrity fell below 20% 1650 | -10/Subcaves | Destroyed by 7R-8Y2(R) with Subdweller Laser Last Messages --------------- 01444_ EY-ZEH(R) destroyed. 01451_ Acquired 44 matter. 01453_ Acquired Sub. Power Source. 01457_ Acquired Sub. Laser. 01458_ Acquired 39 matter. 01459_ Acquired 1 matter. 01515_ EXIT=FOUND 01559_ R0-BSJ(u) tweaks Twisted Machinery. 01572_ R0-BSJ(u) builds Twisted Machinery. 01636_ Searching scrap... 01636_ Found Sub. Monowheel. 01636_ Found Multitool. 01636_ Found 42 Matter. 01637_ Acquired 42 matter. 01638_ Acquired Sub. Monowheel. 01639_ RL-78V(R) angrily emerges from the Twisted Machinery. 01642_ 7R-8Y2(R) angrily emerges from the Twisted Machinery. 01642_ RL-78V(R) affixes Scrap Shield Fragment to Scrap Shield. 01645_ RL-78V(R) Disposable Heat Sink blasted off. 01648_ RL-78V(R) knocked back. Map ----- +----------------------------------------------------+ | ??????????????????????????? #???# " #?## # | | ??????????????????????????? " ????# #?# | | ????????????????????????????""????# " ## ## | | ????????????????????????????#?????## ####### | | ???????????????????????????????????# #?????? | | ???????????????????????????????????# #?????? | | ???????????????????????????????????## #?????? | | ????????????????????????????????????# #?????? | | ????????????????????????????????????#### ##????? | | ???????????????????????????????????????# ####?? | | ???????????????????????????????????????## ##? | | ????????????????????????????????????????# ## | | ????????????????????????????????????????# # # | | ????????????????????????????????????????# ## | | ????????????????????????????????????????# ## | | ???????????????????????????????????????## "#### | | ??????????????????????????????????????## < "#?# | | ??????????????????????????????????????#" ##?## | | ??????????????????????????????????????#" #???## | | ??????????????????????????????????????#"" ###### | | ??????????????????????????##??????????# """#" ### | | ??????????????????????????? ??????????# """"" "" | | ?????????????????????#####? ??????????# """ "" | | ????????????????????##$RR## #?????????# """##"# | | ??????????????????#?#<<|!%# ###?###???# ###"###? | | ????????????????### #<$$&@# # ### ###?## #?????? | | ???????????????## ##<$# # # #??# ##?????? | | ??????????????## #### # ##??## #??????? | | ?????????????## # # ### ###?# ##??????? | | ?????????????# ## ##?## ### #???????? | | ????????????## ##???## ##???????? | | ????????????# ##?????##### #???????? | | ????????????# ## ##??????????###???????? | | ????????????# ??## ##?????????????????????? | | ????????????# ?????## #??????????????????????? | | ????????????##???????## ###??????????????????????? | | ??????????????????????###????????????????????????? | | ?????????????????????????????????????????????????? | | ?????????????????????????????????????????????????? | | ?????????????????????????????????????????????????? | | ?????????????????????????????????????????????????? | | ?????????????????????????????????????????????????? | | ?????????????????????????????????????????????????? | | ?????????????????????????????????????????????????? | | ?????????????????????????????????????????????????? | | ?????????????????????????????????????????????????? | | ?????????????????????????????????????????????????? | | ?????????????????????????????????????????????????? | | ?????????????????????????????????????????????????? | | ?????????????????????????????????????????????????? | +----------------------------------------------------+ Best States ------------- Heat Dissipation 25 Energy Generation 15 Energy Capacity 200 Matter Stores 300 Matter Capacity 300 Sight Range 16 Terrain Scan Density 10 ECM Strength 1 Core Shielding 20 Evasion (%) 40 Recoil Reduction 2 Item Schematics ----------------- None Robot Schematics ------------------ None Fabricated ------------ Nothing Repaired ---------- Nothing Studied --------- None Alien Tech Used ----------------- None Achievements -------------- None Challenges ------------ None Game ------ Seed ModifiedInsulationStabilizer Manual? 0 Play Time 00:15:46 Cumulative 127.5 hours Start 2026.02.14 @ 21:34:56 End 2026.02.14 @ 21:47:50 Sessions 1 Manual Loads 0 Difficulty Rogue Special Mode None Game No. 140 Rogue 140 Adventurer 0 Explorer 0 Win Type - Total 4 Types 4/0/0/0/0/0/0/0/0/0 Lore% 68 Gallery% 52 Achievement% 41 Wizard Run 0 Options --------- Layout 0 ASCII 0 Keyboard 1 Movement Vi Keybinds 0 Fullscreen 1 Font 24/Terminus Map View 76x50 Zoom Use 0% Tactical HUD 1 Map Filters NONE Filters NONE Steam 1 RUN: 8d39eafc-a616-4392-a16b-3e2ff1c268df